bitfinex-derivatives/quotes_SOLF0:USTF0_20250630
["timestamp","ask_amount","ask_price","bid_price","bid_amount"]
[1751314957805,6.3537,157.37,157.35,6.3543]
[1751314957997,6.3532,157.38,157.35,6.3543]
[1751314959507,6.3535,157.37,157.35,6.3543]
[1751314960608,6.3535,157.37,157.34,6.3544]
[1751314961610,6.3535,157.37,157.35,6.3542]
[1751314961808,6.3539,157.36,157.32,45.5]
[1751314962213,6.3539,157.36,157.34,6.3545]
[1751314962413,2.1521,157.39,157.34,6.3545]
[1751314963310,2.1521,157.39,157.3,5.91708844]
[1751314963608,3.70302767,157.34,157.27,5.91708844]
[1751314963913,6.3547,157.34,157.31,6.3558]
[1751314968417,6.3551,157.33,157.31,6.3558]
[1751314971118,2.1521,157.39,157.32,3.70369865]
[1751314971419,10.04799353,157.41,157.32,3.70369865]
[1751314971617,104.68531651,157.42,157.34,3.70369865]
[1751314971814,104.68531651,157.42,157.36,3.70369865]
[1751314972015,6.3521,157.41,157.38,6.3528]
[1751314975118,6.3521,157.41,157.39,6.3526]
[1751314975310,6.3521,157.41,157.35,9.62078709]
[1751314975511,6.3524,157.4,157.35,9.62078709]
[1751314975710,6.3524,157.4,157.37,6.3532]
[1751314976511,6.3527,157.39,157.36,6.3537]
[1751314976720,6.3527,157.39,157.34,51.35708844]
[1751314977418,6.3527,157.39,157.36,6.3536]
[1751314980420,6.3531,157.38,157.36,6.3536]
[1751314981120,3.70369865,157.41,157.35,6.3541]
[1751314981921,6.3533,157.38,157.35,6.3541]
[1751314985320,6.3535,157.37,157.34,51.7945]
[1751314985522,3.70369865,157.37,157.32,5.91708844]
[1751314985723,3.70369865,157.37,157.3,53.33172944]
[1751314985724,2.1535,157.4,157.3,51.35708844]
[1751314985924,3.70369865,157.38,157.3,51.35708844]
[1751314986520,6.3544,157.35,157.32,6.3553]
[1751314987623,6.3547,157.34,157.31,6.3557]
[1751314987814,3.70369865,157.36,157.3,45.44]
[1751314988020,6.3545,157.35,157.32,6.3553]
[1751314990026,6.3547,157.34,157.32,6.3553]
[1751314990531,6.3545,157.35,157.33,6.3551]
[1751314991031,6.3545,157.35,157.3,45.44]
[1751314991233,6.3545,157.35,157.32,6.3553]
[1751314991430,6.3545,157.35,157.3,45.44]
[1751314991736,6.3545,157.35,157.31,6.3555]
[1751314993036,6.3547,157.34,157.31,6.3555]
[1751314993235,3.70369865,157.36,157.32,6.3554]
[1751314994640,6.3544,157.35,157.32,6.3554]
[1751314995135,6.3539,157.36,157.33,6.3549]
[1751314995340,8.09459865,157.37,157.29,9.62078709]
[1751314995643,14.44819865,157.37,157.34,6.3543]
[1751314995940,14.44819865,157.37,157.29,9.62078709]
[1751314995941,3.70369865,157.37,157.3,5.91708844]
[1751314996134,3.70369865,157.37,157.29,9.62078709]
[1751314996335,6.3541,157.36,157.33,6.355]
[1751314996545,3.70369865,157.37,157.29,5.91708844]
[1751314996839,6.3541,157.36,157.33,6.3549]
[1751314997038,45.44,157.38,157.29,5.91708844]
[1751314997233,49.14369865,157.38,157.3,3.70369865]
[1751314997438,6.3546,157.35,157.32,6.3552]
[1751314998632,6.3547,157.34,157.31,6.3558]
[1751314999038,6.3547,157.34,157.28,5.91708844]
[1751314999939,6.3544,157.35,157.28,5.91708844]
[1751315000643,6.3544,157.35,157.31,6.3555]
[1751315001345,6.3547,157.34,157.31,6.3555]
[1751315001744,6.3547,157.34,157.32,6.3554]
[1751315001945,6.3543,157.35,157.29,3.70369865]
[1751315002443,49.14369865,157.38,157.29,3.70369865]
[1751315002444,6.3549,157.34,157.29,5.91708844]
[1751315002842,6.3549,157.34,157.31,6.3558]
[1751315003943,3.70369865,157.36,157.31,6.3558]
[1751315003944,6.3551,157.33,157.31,6.3558]
[1751315004742,6.3551,157.33,157.3,6.3561]
[1751315005547,3.70369865,157.34,157.27,5.91708844]
[1751315005849,3.70505247,157.31,157.26,45.36]
[1751315006336,6.3569,157.29,157.26,51.7177]
[1751315006541,3.70505247,157.31,157.26,45.36]
[1751315007247,6.3564,157.3,157.27,6.3572]
[1751315008049,10.06115247,157.31,157.28,6.357]
[1751315008348,10.06115247,157.31,157.26,45.36]
[1751315008349,3.70505247,157.31,157.26,45.36]
[1751315008651,10.06115247,157.31,157.28,6.3569]
[1751315009150,6.3561,157.31,157.28,6.3569]
[1751315009544,3.70505247,157.33,157.26,45.36]
[1751315009747,3.70505247,157.31,157.26,45.36]
[1751315009947,3.70505247,157.31,157.24,5.91708844]
[1751315010347,6.3569,157.29,157.26,6.3579]
[1751315011552,6.3564,157.3,157.27,6.3575]
[1751315011948,3.70505247,157.31,157.27,6.3575]
[1751315012452,6.3564,157.3,157.27,6.3575]
[1751315013751,6.3564,157.3,157.28,6.357]
[1751315013954,10.06105247,157.31,157.28,6.357]
[1751315014655,6.3564,157.3,157.27,6.3573]
[1751315014856,6.3564,157.3,157.24,3.70505247]
[1751315015157,3.70505247,157.31,157.23,5.91708844]
[1751315015456,6.3571,157.29,157.26,6.3576]
[1751315016757,6.3571,157.29,157.27,6.3575]
[1751315017056,6.3571,157.29,157.23,9.62214091]
[1751315017256,6.3571,157.28,157.23,9.62214091]
[1751315017459,6.3571,157.28,157.26,6.3576]
[1751315018555,6.3569,157.29,157.26,6.3576]
[1751315018755,6.3569,157.29,157.27,6.3573]
[1751315019461,45.36,157.33,157.25,3.70505247]
[1751315019660,45.36,157.33,157.25,9.62214091]
[1751315019959,6.3561,157.31,157.29,6.3567]
[1751315025663,6.3563,157.3,157.25,3.70505247]
[1751315026064,6.3569,157.29,157.23,9.62214091]
[1751315026361,3.70505247,157.3,157.23,9.62214091]
[1751315026562,6.3571,157.29,157.26,6.3577]
[1751315026866,3.70505247,157.3,157.26,6.3577]
[1751315027163,6.3573,157.28,157.26,6.3577]
[1751315027356,3.70505247,157.3,157.26,6.3577]
[1751315027761,6.3569,157.29,157.26,6.3577]
[1751315028263,6.3569,157.29,157.27,6.3574]
[1751315030260,6.3569,157.29,157.26,6.3577]
[1751315030863,3.70505247,157.32,157.23,9.62214091]
[1751315031055,3.70505247,157.32,157.24,5.91708844]
[1751315031255,3.70505247,157.32,157.25,5.91708844]
[1751315031460,6.3561,157.31,157.29,6.3566]
[1751315031862,6.3561,157.31,157.25,5.91708844]
[1751315032166,6.3561,157.31,157.24,5.91708844]
[1751315032367,6.3564,157.3,157.28,6.3569]
[1751315034770,6.3564,157.3,157.27,6.3573]
[1751315036472,3.70505247,157.32,157.27,6.3573]
[1751315036969,6.3567,157.29,157.27,6.3573]
[1751315037568,6.3564,157.3,157.24,9.62214091]
[1751315038072,6.3564,157.3,157.27,6.3572]
[1751315038471,3.70505247,157.32,157.27,6.3572]
[1751315038973,6.3567,157.29,157.27,6.3572]
[1751315039168,6.3567,157.29,157.24,9.62214091]
[1751315039367,6.3567,157.29,157.24,5.91708844]
[1751315039570,6.3574,157.28,157.24,5.91708844]
[1751315039876,6.3574,157.28,157.25,6.3579]
[1751315040776,3.70505247,157.3,157.24,12.27538844]
[1751315040973,3.70505247,157.3,157.24,5.91708844]
[1751315041376,6.3573,157.28,157.25,6.3581]
[1751315041575,3.70505247,157.3,157.24,5.91708844]
[1751315041778,3.70505247,157.32,157.24,5.91708844]
[1751315041978,49.06463781,157.33,157.24,9.62172625]
[1751315042380,45.36,157.33,157.24,9.62172625]
[1751315042681,6.3565,157.3,157.27,6.3572]
[1751315045082,6.3567,157.29,157.27,6.3572]
[1751315046676,6.3565,157.3,157.27,6.3572]
[1751315047382,6.3565,157.3,157.28,6.357]
[1751315049583,6.3565,157.3,157.27,6.3573]
[1751315050586,6.3567,157.29,157.27,6.3573]
[1751315050783,49.06463781,157.33,157.27,6.3573]
[1751315052086,49.06463781,157.33,157.26,6.3577]
[1751315052886,6.357,157.29,157.26,6.3577]
[1751315054391,3.70551561,157.3,157.25,12.27528844]
[1751315054782,6.3575,157.27,157.25,12.27528844]
[1751315055285,6.3579,157.26,157.25,5.91708844]
[1751315055486,3.70551561,157.26,157.23,5.91708844]
[1751315056087,3.70551561,157.26,157.21,5.91708844]
[1751315056283,3.70551561,157.26,157.18,598.12551561]
[1751315056284,3.70551561,157.26,157.2,5.91708844]
[1751315056685,3.70551561,157.26,157.19,5.91708844]
[1751315058083,6.3587,157.24,157.21,6.3599]
[1751315058283,3.70551561,157.26,157.19,5.91708844]
[1751315058693,6.3585,157.25,157.22,6.3593]
[1751315058892,6.3585,157.25,157.19,5.91708844]
[1751315059195,48.92551561,157.28,157.2,9.62260405]
[1751315059395,48.92551561,157.28,157.2,5.91708844]
[1751315060191,6.3584,157.25,157.22,6.3594]
[1751315060794,6.3587,157.24,157.21,6.3597]
[1751315061190,3.70708237,157.25,157.21,6.3597]
[1751315061397,6.359,157.24,157.21,6.3597]
[1751315061592,3.70708237,157.25,157.2,6.3602]
[1751315062187,6.3593,157.23,157.2,6.3602]
[1751315063901,6.3593,157.23,157.21,6.3599]
[1751315065198,3.70708237,157.26,157.18,600.33708844]
[1751315065498,4.3964,157.29,157.21,9.62417081]
[1751315065903,8.10348237,157.29,157.21,9.62417081]
[1751315066100,6.3579,157.26,157.23,6.3588]
[1751315067498,3.70708237,157.32,157.23,48.94708237]
[1751315068093,12.7114,157.32,157.22,5.91708844]
[1751315068297,12.7114,157.32,157.2,7.89172944]
[1751315068298,3.70628411,157.28,157.2,5.91708844]
[1751315068799,6.358,157.26,157.2,5.91708844]
[1751315069395,6.3583,157.25,157.2,5.91708844]
[1751315069602,3.70628411,157.28,157.2,5.91708844]
[1751315070202,6.3583,157.25,157.22,6.3594]
[1751315071300,3.70628411,157.26,157.22,6.3594]
[1751315071501,3.70628411,157.26,157.21,6.3597]
[1751315071705,3.70628411,157.26,157.18,604.06337255]
[1751315072007,6.3593,157.23,157.2,6.3601]
[1751315072805,6.359,157.24,157.21,6.3598]
[1751315073404,6.359,157.24,157.22,6.3594]
[1751315073607,6.3585,157.25,157.22,6.3594]
[1751315074100,3.70628411,157.26,157.22,6.3594]
[1751315075008,3.70628411,157.26,157.23,6.3587]
[1751315075305,6.3584,157.25,157.18,604.06337255]
[1751315075506,47.4997,157.3,157.23,6.3589]
[1751315075701,3.70628411,157.27,157.18,604.06337255]
[1751315075901,6.3579,157.26,157.18,604.06337255]
[1751315076306,6.3579,157.26,157.23,6.3589]
[1751315077708,6.3579,157.26,157.18,604.06337255]
[1751315078208,6.3579,157.26,157.23,6.3589]
[1751315078807,6.3579,157.26,157.23,6.3588]
[1751315079012,3.70628411,157.27,157.23,6.3588]
[1751315079306,3.70628411,157.27,157.18,604.06337255]
[1751315079509,6.3577,157.27,157.2,9.62337255]
[1751315079908,6.3577,157.27,157.24,6.3583]
[1751315080305,6.3577,157.27,157.2,9.62337255]
[1751315081110,6.3577,157.27,157.24,6.3583]
[1751315081611,6.3577,157.27,157.25,6.3582]
[1751315081811,6.3572,157.28,157.25,6.3582]
[1751315082014,3.70628411,157.29,157.25,6.3582]
[1751315083312,6.3572,157.28,157.25,6.3582]
[1751315083711,47.4997,157.3,157.26,6.3579]
[1751315083909,47.4997,157.3,157.18,54.23854686]
[1751315083910,6.3569,157.29,157.22,3.70628411]
[1751315084115,6.3569,157.29,157.22,9.62337255]
[1751315084412,6.3569,157.29,157.27,6.3573]
[1751315084601,3.70628411,157.32,157.24,3.70628411]
[1751315086216,3.70628411,157.32,157.28,6.3568]
[1751315086810,6.356,157.31,157.28,6.3568]
[1751315087212,3.70628411,157.32,157.28,6.3568]
[1751315087816,6.356,157.31,157.28,6.3568]
[1751315088419,6.3563,157.3,157.28,6.3568]
[1751315089416,3.70628411,157.32,157.23,54.78337255]
[1751315089618,48.86628411,157.33,157.24,5.91708844]
[1751315091323,48.86628411,157.33,157.23,54.78337255]
[1751315091615,6.356,157.31,157.29,6.3564]
[1751315095820,6.356,157.31,157.28,6.3569]
[1751315096420,48.86628411,157.33,157.28,6.3569]
[1751315096621,3.70451586,157.32,157.28,6.3569]
[1751315097021,6.3565,157.3,157.28,6.3569]
[1751315097722,6.3569,157.29,157.26,6.3577]
[1751315098724,6.3569,157.29,157.27,6.3574]
[1751315099920,6.3572,157.28,157.26,6.3577]
[1751315100223,3.70451586,157.3,157.23,51.07708844]
[1751315100420,6.3573,157.28,157.26,6.3577]
[1751315100629,3.70529204,157.31,157.23,51.07708844]
[1751315100924,3.70529204,157.31,157.27,6.3571]
[1751315101129,6.3565,157.3,157.27,6.3571]
[1751315101324,6.3565,157.3,157.23,51.07708844]
[1751315101925,6.3567,157.29,157.26,6.3576]
[1751315103421,6.3564,157.3,157.27,6.3574]
[1751315103822,3.70529204,157.31,157.27,6.3574]
[1751315106228,6.3567,157.29,157.27,6.3574]
[1751315108130,6.3571,157.28,157.26,6.3578]
[1751315109226,6.3569,157.29,157.27,6.3575]
[1751315109426,6.3569,157.29,157.23,51.07708844]
[1751315109626,3.70529204,157.29,157.23,51.07708844]
[1751315109823,3.70529204,157.29,157.23,45.16]
[1751315110130,3.7060413,157.29,157.23,45.16]
[1751315110319,6.3578,157.27,157.23,45.16]
[1751315111029,3.70690129,157.27,157.18,727.2687986]
[1751315111231,3.70690129,157.25,157.18,727.2687986]
[1751315111429,6.3594,157.23,157.2,6.3601]
[1751315111630,6.3594,157.23,157.18,727.2687986]
[1751315111930,3.70690129,157.25,157.18,727.2687986]
[1751315112131,6.3595,157.23,157.2,6.36]
[1751315112331,6.3595,157.23,157.18,721.35171016]
[1751315113332,3.70690129,157.25,157.18,721.35171016]
[1751315113630,3.70690129,157.25,157.2,6.3601]
[1751315114031,3.70690129,157.25,157.18,721.35171016]
[1751315114424,6.3593,157.23,157.21,6.3597]
[1751315115933,6.3593,157.23,157.2,6.3601]
[1751315116640,6.3593,157.23,157.17,12.27848844]
[1751315116641,3.70690129,157.23,157.17,12.27848844]
[1751315116834,3.70690129,157.23,157.17,6.3614]
[1751315117132,6.3606,157.2,157.17,6.3614]
[1751315117333,3.70690129,157.23,157.17,6.3614]
[1751315117734,6.3609,157.19,157.16,6.3618]
[1751315118138,6.3609,157.19,157.17,6.3615]
[1751315119141,6.3609,157.19,157.16,6.3619]
[1751315119338,3.70690129,157.21,157.15,5.91708844]
[1751315119532,3.70690129,157.21,157.14,45.06]
[1751315119533,3.70690129,157.19,157.14,50.97708844]
[1751315119838,6.3614,157.18,157.15,6.3621]
[1751315120234,3.70690129,157.19,157.14,50.97708844]
[1751315120438,6.3613,157.18,157.15,6.3623]
[1751315122231,6.6216,157.22,157.13,5.91708844]
[1751315122430,3.70690129,157.2,157.13,5.91708844]
[1751315123136,6.3613,157.18,157.15,6.3621]
[1751315123535,3.70690129,157.2,157.15,6.3621]
[1751315123845,6.3616,157.17,157.13,5.91708844]
[1751315124331,6.3613,157.18,157.15,6.3621]
[1751315125238,6.3613,157.18,157.16,6.3619]
[1751315125439,3.70690129,157.2,157.16,6.3619]
[1751315125440,6.3609,157.19,157.16,6.3619]
[1751315126342,6.3609,157.19,157.17,6.3615]
[1751315126542,6.3609,157.19,157.12,3.70690129]
[1751315126736,6.3609,157.19,157.13,45.08]
[1751315126938,6.3612,157.18,157.13,45.08]
[1751315127540,6.3612,157.18,157.15,6.3621]
[1751315128646,6.3612,157.18,157.16,6.3619]
[1751315128838,6.3609,157.19,157.16,6.3619]
[1751315129035,51.6816,157.22,157.13,45.08]
[1751315129339,3.70690129,157.21,157.17,6.3613]
[1751315130438,6.3604,157.2,157.17,6.3613]
[1751315130641,6.3604,157.2,157.18,6.3611]
[1751315131038,6.3604,157.2,157.13,45.08]
[1751315131344,6.3604,157.2,157.17,6.3613]
[1751315131546,6.3607,157.19,157.17,6.3613]
[1751315133741,6.3605,157.2,157.17,6.3613]
[1751315133947,6.3605,157.2,157.18,6.3611]
[1751315134245,6.3605,157.2,157.13,48.78690129]
[1751315134444,6.3605,157.2,157.17,6.3613]
[1751315136347,6.3601,157.21,157.15,3.70882639]
[1751315136945,6.3604,157.2,157.18,6.3608]
[1751315139348,6.3604,157.2,157.17,6.3613]
[1751315140050,51.4679,157.26,157.14,3.70882639]
[1751315140244,3.70882639,157.24,157.16,3.70882639]
[1751315140450,3.70882639,157.24,157.19,6.3604]
[1751315140849,3.70882639,157.24,157.16,3.70882639]
[1751315141148,3.70882639,157.25,157.16,3.70882639]
[1751315141551,6.3589,157.24,157.22,6.3593]
[1751315143348,6.3585,157.25,157.23,6.359]
[1751315143555,53.20582639,157.27,157.23,6.359]
[1751315143752,8.12582639,157.27,157.23,6.359]
[1751315143952,6.3582,157.26,157.23,6.359]
[1751315144753,6.3584,157.25,157.22,6.3593]
[1751315145648,6.3588,157.24,157.22,6.3593]
[1751315147550,6.3584,157.25,157.22,6.3593]
[1751315147750,6.3584,157.25,157.23,6.359]
[1751315148754,6.3581,157.26,157.24,6.3587]
[1751315148952,6.3581,157.26,157.2,3.70882639]
[1751315149357,6.3584,157.25,157.2,3.70882639]
[1751315149854,6.3584,157.25,157.22,6.3592]
[1751315150257,6.3588,157.24,157.18,50.76302639]
[1751315150756,6.3588,157.24,157.21,6.3596]
[1751315151058,3.70882639,157.25,157.18,45.0]
[1751315151255,3.70882639,157.23,157.18,45.0]
[1751315151455,3.70882639,157.23,157.19,6.3605]
[1751315152358,6.3601,157.21,157.18,51.3609]
[1751315152759,6.3594,157.23,157.18,45.0]
[1751315152952,6.3594,157.23,157.2,6.3601]
[1751315154555,6.3597,157.22,157.2,6.3601]
[1751315155156,6.3597,157.22,157.19,6.3605]
[1751315155359,6.3597,157.22,157.18,45.0]
[1751315155758,6.3597,157.22,157.19,6.3604]
[1751315156159,6.36,157.21,157.19,6.3604]
[1751315156459,3.70882639,157.25,157.19,6.3604]
[1751315156866,6.3598,157.22,157.19,6.3604]
[1751315157067,3.70882639,157.25,157.19,6.3604]
[1751315158169,6.3602,157.21,157.18,51.3609]
[1751315158466,3.70882639,157.25,157.19,5.27379512]
[1751315158667,6.3599,157.21,157.19,6.3605]
[1751315158968,6.3599,157.21,157.18,45.0]
[1751315159168,6.3599,157.21,157.19,5.27416978]
[1751315159369,6.3599,157.21,157.18,51.361]
[1751315159568,6.3599,157.21,157.19,5.27446397]
[1751315159767,6.3599,157.21,157.18,51.361]
[1751315159964,6.3599,157.21,157.19,5.27446397]
[1751315160165,6.3599,157.21,157.18,51.361]
[1751315160365,6.3599,157.21,157.19,5.27446397]
[1751315160669,6.3599,157.21,157.18,51.361]
[1751315160869,6.3599,157.21,157.19,5.27454878]
[1751315161070,6.3599,157.21,157.18,51.361]
[1751315161270,6.3599,157.21,157.19,5.27454878]
[1751315161574,6.3599,157.21,157.18,51.361]
[1751315161770,6.3599,157.21,157.19,5.27488123]
[1751315161970,6.3599,157.21,157.18,51.361]
[1751315162172,3.70879887,157.23,157.19,5.27488123]
[1751315162362,3.70879887,157.23,157.18,51.361]
[1751315162565,3.70879887,157.23,157.19,5.27494837]
[1751315162761,3.70879887,157.23,157.18,51.361]
[1751315162762,6.3602,157.21,157.18,51.361]
[1751315163072,3.70879887,157.23,157.19,5.27494837]
[1751315163268,3.70879887,157.23,157.18,51.361]
[1751315163472,3.70879887,157.23,157.19,5.27501756]
[1751315163668,3.70879887,157.23,157.18,51.361]
[1751315163875,6.3603,157.2,157.19,5.27501756]
[1751315164171,3.70879887,157.23,157.16,12.27222695]
[1751315164172,3.70879887,157.23,157.16,6.3618]
[1751315164369,3.70879887,157.23,157.17,5.27549993]
[1751315164670,6.361,157.19,157.18,5.27549993]
[1751315166875,6.3611,157.18,157.16,6.3619]
[1751315167071,3.70879887,157.21,157.17,5.27549195]
[1751315167272,3.70879887,157.21,157.17,6.3615]
[1751315167471,6.3609,157.19,157.17,6.3615]
[1751315168376,6.3613,157.18,157.16,6.3617]
[1751315168578,6.3613,157.18,157.17,5.28350165]
[1751315169176,6.3609,157.19,157.17,5.28350165]
[1751315169372,6.3609,157.19,157.16,6.3616]
[1751315169574,3.70879887,157.21,157.17,5.28339174]
[1751315169774,6.3611,157.18,157.14,50.89042695]
[1751315169976,6.3611,157.18,157.15,11.64549174]
[1751315170176,6.3611,157.18,157.16,5.28339174]
[1751315170369,6.3611,157.18,157.17,5.28339174]
[1751315173971,6.3609,157.19,157.17,5.28339174]
[1751315174178,3.70879887,157.22,157.14,44.98]
[1751315174470,3.70879887,157.22,157.15,5.28809925]
[1751315174774,3.70879887,157.22,157.16,11.64999925]
[1751315174975,3.70879887,157.22,157.17,5.28809925]
[1751315175175,3.70879887,157.22,157.16,6.3619]
[1751315175374,6.361,157.19,157.17,5.28843826]
[1751315175581,6.361,157.19,157.16,6.3619]
[1751315175879,6.361,157.19,157.17,5.2885917]
[1751315176079,6.3612,157.18,157.16,6.3619]
[1751315176276,6.3612,157.18,157.17,5.28867504]
[1751315177377,6.3612,157.18,157.17,5.28867739]
[1751315178683,6.3609,157.19,157.17,5.28867739]
[1751315178879,6.3609,157.19,157.16,6.3619]
[1751315179074,3.70879887,157.21,157.17,5.29009586]
[1751315179281,3.70879887,157.21,157.16,6.3619]
[1751315180582,6.3614,157.18,157.16,6.3619]
[1751315182279,2.37445982,157.19,157.16,6.3619]
[1751315182487,8.73535982,157.19,157.16,6.3619]
[1751315183787,6.3612,157.18,157.16,6.3619]
[1751315189285,57.697,157.25,157.14,44.98]
[1751315189491,2.37445982,157.22,157.17,2.37445982]
[1751315190285,2.37445982,157.22,157.18,5.28846907]
[1751315190487,2.37445982,157.22,157.19,5.28846907]
[1751315190688,6.3606,157.2,157.17,8.73575982]
[1751315190987,6.3606,157.2,157.18,5.28910807]
[1751315191181,6.3606,157.2,157.17,8.73575982]
[1751315191381,6.3607,157.19,157.18,5.28941134]
[1751315199797,2.37445982,157.2,157.18,11.65051134]
[1751315199798,6.3605,157.2,157.18,11.65051134]
[1751315199994,6.3605,157.2,157.19,5.28941134]
[1751315201788,44.98,157.25,157.19,5.28941134]
[1751315202099,2.37445982,157.23,157.2,5.28941134]
[1751315202393,6.3595,157.22,157.21,5.29844432]
[1751315203293,6.3602,157.21,157.18,6.3609]
[1751315203491,2.37445982,157.23,157.19,5.2984663]
[1751315203690,2.37445982,157.23,157.2,5.2984663]
[1751315203896,6.3604,157.2,157.18,6.3609]
[1751315204096,6.3604,157.2,157.19,5.29854557]
[1751315206498,6.3601,157.21,157.19,11.65924557]
[1751315206797,6.3601,157.21,157.2,5.29854557]
[1751315209100,6.3592,157.23,157.21,6.3599]
[1751315209300,6.3592,157.23,157.18,2.37445982]
[1751315209601,6.3592,157.23,157.19,5.30181623]
[1751315209800,6.3592,157.23,157.2,11.66181623]
[1751315210099,6.3592,157.23,157.21,5.30181623]
[1751315210297,6.3592,157.23,157.21,6.3599]
[1751315211294,4.417,157.27,157.2,2.37445982]
[1751315211494,11.80657285,157.32,157.26,2.37445982]
[1751315211695,14.18103267,157.33,157.28,2.37445982]
[1751315211894,6.3565,157.3,157.28,2.37445982]
[1751315212700,6.3561,157.31,157.28,2.37445982]
[1751315213600,6.3563,157.3,157.28,2.37445982]
[1751315213797,6.3563,157.3,157.25,9.61434768]
[1751315213998,6.3563,157.3,157.26,5.27687298]
[1751315214298,6.3563,157.3,157.27,5.27687298]
[1751315214498,6.3563,157.3,157.28,6.3569]
[1751315215398,4.209,157.34,157.27,3.70392073]
[1751315215699,4.209,157.34,157.28,8.96970631]
[1751315215900,6.3553,157.33,157.3,6.3559]
[1751315216100,6.3553,157.33,157.28,3.7028778]
[1751315216500,86.59281563,157.38,157.32,3.7028778]
[1751315216705,556.3367,157.42,157.34,3.7028778]
[1751315216907,6.352,157.41,157.39,6.3526]
[1751315217102,6.6567,157.42,157.36,3.7028778]
[1751315217495,6.3525,157.4,157.36,3.7028778]
[1751315218506,3.7028778,157.4,157.34,44.8]
[1751315218999,3.7028778,157.4,157.34,51.1543]
[1751315219200,3.7028778,157.41,157.34,44.8]
[1751315220308,3.7028778,157.39,157.3,44.8]
[1751315220505,3.7028778,157.37,157.3,44.8]
[1751315220899,6.3543,157.35,157.32,6.3552]
[1751315221306,6.3548,157.34,157.31,6.3557]
[1751315221508,3.7028778,157.37,157.31,6.3557]
[1751315222003,6.3544,157.35,157.31,6.3557]
[1751315222506,6.3544,157.35,157.32,6.3554]
[1751315222806,3.7028778,157.36,157.27,3.7028778]
[1751315223206,3.7028778,157.36,157.25,6.5687]
[1751315223207,3.7028778,157.36,157.31,6.3558]
[1751315224004,6.3543,157.35,157.32,6.3554]
[1751315224312,3.7028778,157.4,157.31,3.7028778]
[1751315225197,3.7028778,157.4,157.33,6.3547]
[1751315225397,3.7028778,157.4,157.31,3.7028778]
[1751315225602,6.3537,157.37,157.33,6.3548]
[1751315225807,3.7028778,157.4,157.33,6.3548]
[1751315226006,3.7028778,157.4,157.31,3.7028778]
[1751315226210,6.3542,157.36,157.32,6.3552]
[1751315226410,3.7028778,157.4,157.32,6.3552]
[1751315226611,3.7028778,157.38,157.32,6.3552]
[1751315227213,3.7028778,157.38,157.33,6.355]
[1751315227914,3.7028778,157.38,157.32,6.3553]
[1751315228613,6.3542,157.36,157.32,6.3553]
[1751315229614,6.3542,157.36,157.33,6.355]
[1751315230020,6.3543,157.35,157.29,48.4828778]
[1751315230519,3.7028778,157.38,157.29,48.4828778]
[1751315231614,3.7028778,157.38,157.34,6.3545]
[1751315232018,6.3537,157.37,157.35,6.3542]
[1751315232214,6.3537,157.37,157.31,3.7028778]
[1751315232412,6.3533,157.38,157.31,3.7028778]
[1751315232718,55.1395778,157.42,157.33,3.7028778]
[1751315232921,6.3525,157.4,157.33,3.7028778]
[1751315233422,55.1395778,157.42,157.33,3.7028778]
[1751315233821,55.1395778,157.42,157.36,6.3537]
[1751315234220,6.3529,157.39,157.36,6.3537]
[1751315236029,6.3524,157.4,157.33,3.7028778]
[1751315236224,55.1395778,157.42,157.35,3.7028778]
[1751315236625,6.3522,157.41,157.38,6.3528]
[1751315237224,55.1395778,157.42,157.38,6.3528]
[1751315237423,51.4367,157.42,157.38,6.3528]
[1751315237828,6.3519,157.41,157.38,6.3528]
[1751315238027,6.3519,157.41,157.39,6.3526]
[1751315238326,6.3519,157.41,157.35,3.7028778]
[1751315238528,6.3523,157.4,157.37,6.3531]
[1751315238730,6.3523,157.4,157.35,3.7028778]
[1751315238930,6.352,157.41,157.39,6.3524]
[1751315239628,6.352,157.41,157.38,6.3529]
[1751315240023,6.352,157.41,157.35,3.7028778]
[1751315240024,6.3523,157.4,157.35,3.7028778]
[1751315240524,6.3523,157.4,157.37,6.3535]
[1751315240722,6.3528,157.39,157.37,6.3535]